[Event "Swedish Chess Championship 2019: Weekend 1"]
[Site "Stiga Sports Arena, Arenatorget 1, Eskilstuna, Sweden"]
[Date "2019.07.07"]
[Round "5.6"]
[White "Eriksson, Joel"]
[Black "Wallgren, Ulf"]
[Result "1/2-1/2"]
[TimeControl "90 minutes + 30 seconds per move from move one"]
[WhiteFideId "1729233"]
[BlackFideId "1706527"]
[WhiteElo "1998"]
[BlackElo "2013"]

1. e4 {[%clk 01:30:29]} {[%emt 00:00:30]} d5 {[%clk 01:28:55]} {[%emt
00:02:05]} 2. exd5 {[%clk 01:30:50]} {[%emt 00:00:09]} Qxd5 {[%clk 01:29:21]}
{[%emt 00:00:04]} 3. Nf3 {[%clk 01:31:14]} {[%emt 00:00:07]} Bg4 {[%clk
01:29:06]} {[%emt 00:00:45]} 4. Be2 {[%clk 01:31:38]} {[%emt 00:00:07]} Nc6
{[%clk 01:29:02]} {[%emt 00:00:34]} 5. d4 {[%clk 01:31:43]} {[%emt 00:00:24]}
O-O-O {[%clk 01:27:51]} {[%emt 00:01:41]} 6. Be3 {[%clk 01:31:38]} {[%emt
00:00:35]} Nf6 {[%clk 01:24:50]} {[%emt 00:03:31]} 7. Nbd2 {[%clk 01:30:26]}
{[%emt 00:01:43]} e6 {[%clk 01:12:30]} {[%emt 00:12:49]} 8. h3 {[%clk
01:26:43]} {[%emt 00:04:13]} Bh5 {[%clk 01:07:12]} {[%emt 00:05:47]} 9. O-O
{[%clk 01:25:25]} {[%emt 00:01:49]} h6 {[%clk 01:05:35]} {[%emt 00:02:07]} 10.
c4 {[%clk 01:24:13]} {[%emt 00:01:43]} Qf5 {[%clk 00:55:44]} {[%emt 00:10:18]}
11. a3 {[%clk 01:16:00]} {[%emt 00:08:45]} g5 {[%clk 00:47:05]} {[%emt
00:09:08]} 12. Qa4 {[%clk 01:05:33]} {[%emt 00:10:58]} g4 {[%clk 00:40:48]}
{[%emt 00:06:47]} 13. Nh4 {[%clk 01:05:14]} {[%emt 00:00:49]} Qh7 {[%clk
00:40:33]} {[%emt 00:00:44]} 14. d5 {[%clk 01:04:18]} {[%emt 00:01:28]} exd5
{[%clk 00:37:57]} {[%emt 00:03:06]} 15. cxd5 {[%clk 01:00:42]} {[%emt
00:04:06]} Nxd5 {[%clk 00:30:35]} {[%emt 00:07:51]} 16. Bxg4+ {[%clk 00:56:08]}
{[%emt 00:05:03]} Bxg4 {[%clk 00:30:37]} {[%emt 00:00:29]} 17. Qxg4+ {[%clk
00:56:26]} {[%emt 00:00:12]} Kb8 {[%clk 00:30:01]} {[%emt 00:01:05]} 18. Ndf3
{[%clk 00:54:10]} {[%emt 00:02:47]} Nxe3 {[%clk 00:27:14]} {[%emt 00:03:17]} 19.
fxe3 {[%clk 00:51:20]} {[%emt 00:03:20]} Bc5 {[%clk 00:27:27]} {[%emt
00:00:17]} 20. Rae1 {[%clk 00:47:57]} {[%emt 00:03:54]} Rhe8 {[%clk 00:27:19]}
{[%emt 00:00:37]} 21. Nf5 {[%clk 00:43:10]} {[%emt 00:05:17]} Ne5 {[%clk
00:21:25]} {[%emt 00:06:24]} 22. Nxe5 {[%clk 00:42:35]} {[%emt 00:01:06]} Rxe5
{[%clk 00:21:51]} {[%emt 00:00:04]} 23. Nd4 {[%clk 00:38:54]} {[%emt 00:04:11]}
Rde8 {[%clk 00:18:09]} {[%emt 00:04:12]} 24. Kh1 {[%clk 00:33:50]} {[%emt
00:05:35]} Bxd4 {[%clk 00:13:39]} {[%emt 00:04:59]} 25. Qxd4 {[%clk 00:33:52]}
{[%emt 00:00:28]} f5 {[%clk 00:13:03]} {[%emt 00:01:04]} 26. Rd1 {[%clk
00:31:24]} {[%emt 00:03:00]} Qe7 {[%clk 00:12:46]} {[%emt 00:00:46]} 27. Rd3
{[%clk 00:30:21]} {[%emt 00:01:35]} b6 {[%clk 00:10:25]} {[%emt 00:02:51]} 28.
Rf3 {[%clk 00:24:53]} {[%emt 00:05:57]} 1/2-1/2

[Event "Swedish Chess Championship 2019: Weekend 1"]
[Site "Stiga Sports Arena, Arenatorget 1, Eskilstuna, Sweden"]
[Date "2019.07.07"]
[Round "5.7"]
[White "Mitra, Akash"]
[Black "Thollin, Robert"]
[Result "0-1"]
[TimeControl "90 minutes + 30 seconds per move from move one"]
[WhiteFideId "1726714"]
[BlackFideId "1701630"]
[WhiteElo "1957"]
[BlackElo "1983"]

1. e4 {[%clk 01:28:57]} {[%emt 00:02:03]} d6 {[%clk 01:30:52]} {[%emt
00:00:08]} 2. d4 {[%clk 01:29:19]} {[%emt 00:00:08]} Nf6 {[%clk 01:31:15]}
{[%emt 00:00:07]} 3. Nc3 {[%clk 01:29:06]} {[%emt 00:00:42]} g6 {[%clk
01:31:38]} {[%emt 00:00:07]} 4. f4 {[%clk 01:29:23]} {[%emt 00:00:14]} Bg7
{[%clk 01:32:01]} {[%emt 00:00:07]} 5. Nf3 {[%clk 01:29:49]} {[%emt 00:00:04]}
c5 {[%clk 01:32:25]} {[%emt 00:00:06]} 6. dxc5 {[%clk 01:29:47]} {[%emt
00:00:33]} Qa5 {[%clk 01:32:48]} {[%emt 00:00:06]} 7. Bd3 {[%clk 01:27:26]}
{[%emt 00:02:52]} Qxc5 {[%clk 01:33:09]} {[%emt 00:00:08]} 8. Qe2 {[%clk
01:25:52]} {[%emt 00:02:03]} Nc6 {[%clk 01:29:15]} {[%emt 00:04:25]} 9. h3
{[%clk 01:25:03]} {[%emt 00:01:18]} Nh5 {[%clk 01:14:22]} {[%emt 00:15:23]} 10.
Be3 {[%clk 01:18:51]} {[%emt 00:06:43]} Ng3 {[%clk 01:03:12]} {[%emt 00:11:40]}
11. Bxc5 {[%clk 01:16:54]} {[%emt 00:02:27]} Bxc3+ {[%clk 00:57:33]} {[%emt
00:06:09]} 12. bxc3 {[%clk 01:17:14]} {[%emt 00:00:10]} Nxe2 {[%clk 00:57:55]}
{[%emt 00:00:08]} 13. Kxe2 {[%clk 01:16:02]} {[%emt 00:01:41]} dxc5 {[%clk
00:58:13]} {[%emt 00:00:12]} 14. g4 {[%clk 01:14:38]} {[%emt 00:01:54]} f6
{[%clk 00:41:31]} {[%emt 00:17:12]} 15. Kf2 {[%clk 01:05:24]} {[%emt 00:09:43]}
Be6 {[%clk 00:35:17]} {[%emt 00:06:45]} 16. f5 {[%clk 01:04:39]} {[%emt
00:01:16]} Bf7 {[%clk 00:34:38]} {[%emt 00:01:08]} 17. Bb5 {[%clk 01:04:36]}
{[%emt 00:00:34]} O-O-O {[%clk 00:33:00]} {[%emt 00:02:08]} 18. Bxc6 {[%clk
01:04:20]} {[%emt 00:00:46]} bxc6 {[%clk 00:33:28]} {[%emt 00:00:02]} 19. Rhe1
{[%clk 00:54:52]} {[%emt 00:09:54]} Kc7 {[%clk 00:25:23]} {[%emt 00:08:38]} 20.
e5 {[%clk 00:47:20]} {[%emt 00:08:02]} Bd5 {[%clk 00:13:23]} {[%emt 00:12:30]}
21. exf6 {[%clk 00:36:57]} {[%emt 00:10:54]} exf6 {[%clk 00:13:51]} {[%emt
00:00:03]} 22. Re7+ {[%clk 00:36:07]} {[%emt 00:01:20]} Rd7 {[%clk 00:14:12]}
{[%emt 00:00:09]} 23. Rae1 {[%clk 00:29:58]} {[%emt 00:06:38]} Rb8 {[%clk
00:10:10]} {[%emt 00:04:32]} 24. g5 {[%clk 00:19:19]} {[%emt 00:11:09]} fxg5
{[%clk 00:05:14]} {[%emt 00:05:26]} 25. fxg6 {[%clk 00:14:51]} {[%emt
00:04:58]} hxg6 {[%clk 00:02:19]} {[%emt 00:03:26]} 26. Rxd7+ {[%clk 00:14:35]}
{[%emt 00:00:46]} Kxd7 {[%clk 00:02:42]} {[%emt 00:00:07]} 27. Ne5+ {[%clk
00:14:47]} {[%emt 00:00:17]} Kd6 {[%clk 00:02:44]} {[%emt 00:00:28]} 28. Nxg6
{[%clk 00:09:19]} {[%emt 00:05:58]} Rb2 {[%clk 00:02:54]} {[%emt 00:00:19]} 29.
Re2 {[%clk 00:09:17]} {[%emt 00:00:32]} Rxa2 {[%clk 00:02:58]} {[%emt
00:00:27]} 30. Ne5 {[%clk 00:08:41]} {[%emt 00:01:04]} Ra1 {[%clk 00:02:37]}
{[%emt 00:00:53]} 31. Nf3 {[%clk 00:05:34]} {[%emt 00:03:36]} Bxf3 {[%clk
00:01:35]} {[%emt 00:01:33]} 32. Kxf3 {[%clk 00:05:52]} {[%emt 00:00:12]} a5
{[%clk 00:01:02]} {[%emt 00:01:03]} 33. Kg4 {[%clk 00:05:02]} {[%emt 00:01:19]}
Rg1+ {[%clk 00:01:30]} {[%emt 00:00:02]} 34. Kf3 {[%clk 00:04:52]} {[%emt
00:00:40]} c4 {[%clk 00:01:05]} {[%emt 00:00:56]} 35. Re8 {[%clk 00:04:26]}
{[%emt 00:00:55]} Rc1 {[%clk 00:00:57]} {[%emt 00:00:38]} 36. Ra8 {[%clk
00:04:32]} {[%emt 00:00:24]} Rxc2 {[%clk 00:01:18]} {[%emt 00:00:10]} 37. Rxa5
{[%clk 00:04:32]} {[%emt 00:00:29]} Rxc3+ {[%clk 00:01:42]} {[%emt 00:00:06]}
38. Kf2 {[%clk 00:03:22]} {[%emt 00:01:41]} Rxh3 {[%clk 00:02:02]} {[%emt
00:00:09]} 39. Rxg5 {[%clk 00:03:44]} {[%emt 00:00:08]} Rd3 {[%clk 00:01:52]}
{[%emt 00:00:39]} 40. Ke2 {[%clk 00:03:57]} {[%emt 00:00:17]} Rd5 {[%clk
00:02:21]} {[%emt 00:00:02]} 41. Rg1 {[%clk 00:03:55]} {[%emt 00:00:31]} Kc5
{[%clk 00:02:49]} {[%emt 00:00:03]} 42. Rb1 {[%clk 00:04:23]} {[%emt 00:00:01]}
c3 {[%clk 00:04:44]} {[%emt 00:01:08]} 43. Rh1 {[%clk 00:02:21]} {[%emt
00:02:33]} Kc4 {[%clk 00:04:20]} {[%emt 00:00:54]} 44. Rb1 {[%clk 00:01:56]}
{[%emt 00:00:55]} c2 {[%clk 00:03:30]} {[%emt 00:01:19]} 45. Rb6 {[%clk
00:01:18]} {[%emt 00:01:08]} c1=Q {[%clk 00:03:46]} {[%emt 00:00:14]} 0-1

[Event "Swedish Chess Championship 2019: Weekend 1"]
[Site "Stiga Sports Arena, Arenatorget 1, Eskilstuna, Sweden"]
[Date "2019.07.07"]
[Round "5.8"]
[White "Johansson, Roy"]
[Black "Johansson, Mathias"]
[Result "1/2-1/2"]
[TimeControl "90 minutes + 30 seconds per move from move one"]
[WhiteFideId "1745972"]
[BlackFideId "1723324"]
[WhiteElo "1932"]
[BlackElo "1912"]

1. d4 {[%clk 01:30:46]} {[%emt 00:00:14]} d5 {[%clk 01:30:55]} {[%emt
00:00:05]} 2. Bf4 {[%clk 01:31:08]} {[%emt 00:00:08]} e6 {[%clk 01:29:53]}
{[%emt 00:01:32]} 3. e3 {[%clk 01:31:32]} {[%emt 00:00:06]} c5 {[%clk
01:28:51]} {[%emt 00:01:31]} 4. c3 {[%clk 01:31:52]} {[%emt 00:00:11]} Nc6
{[%clk 01:28:47]} {[%emt 00:00:34]} 5. Nf3 {[%clk 01:31:54]} {[%emt 00:00:28]}
Nf6 {[%clk 01:26:46]} {[%emt 00:02:31]} 6. Ne5 {[%clk 01:31:49]} {[%emt
00:00:34]} Bd6 {[%clk 01:19:02]} {[%emt 00:08:14]} 7. Bg3 {[%clk 01:32:03]}
{[%emt 00:00:17]} O-O {[%clk 01:15:08]} {[%emt 00:04:23]} 8. Nd2 {[%clk
01:32:12]} {[%emt 00:00:22]} Qc7 {[%clk 01:14:23]} {[%emt 00:01:15]} 9. f4
{[%clk 01:31:59]} {[%emt 00:00:44]} Ne4 {[%clk 01:09:22]} {[%emt 00:05:30]} 10.
Bd3 {[%clk 01:31:23]} {[%emt 00:01:06]} Nxd2 {[%clk 01:09:04]} {[%emt
00:00:48]} 11. Qxd2 {[%clk 01:31:18]} {[%emt 00:00:35]} f6 {[%clk 01:04:30]}
{[%emt 00:05:04]} 12. Nxc6 {[%clk 01:30:54]} {[%emt 00:00:54]} bxc6 {[%clk
01:03:41]} {[%emt 00:01:19]} 13. O-O {[%clk 01:30:29]} {[%emt 00:00:53]} c4
{[%clk 01:01:15]} {[%emt 00:02:58]} 14. Bc2 {[%clk 01:30:06]} {[%emt 00:00:53]}
f5 {[%clk 01:01:06]} {[%emt 00:00:38]} 1/2-1/2

[Event "Swedish Chess Championship 2019: Weekend 1"]
[Site "Stiga Sports Arena, Arenatorget 1, Eskilstuna, Sweden"]
[Date "2019.07.07"]
[Round "5.9"]
[White "Bjornvall, Tord"]
[Black "Berglund, Nils-Erik"]
[Result "1-0"]
[TimeControl "90 minutes + 30 seconds per move from move one"]
[WhiteFideId "1716557"]
[BlackFideId "1710494"]
[WhiteElo "1997"]
[BlackElo "1926"]

1. e4 {[%clk 01:30:54]} {[%emt 00:00:03]} e6 {[%clk 01:26:56]} {[%emt
00:04:06]} 2. Nc3 {[%clk 01:31:13]} {[%emt 00:00:09]} d5 {[%clk 01:26:51]}
{[%emt 00:00:36]} 3. Nf3 {[%clk 01:31:34]} {[%emt 00:00:09]} dxe4 {[%clk
01:25:54]} {[%emt 00:01:27]} 4. Nxe4 {[%clk 01:31:51]} {[%emt 00:00:12]} Be7
{[%clk 01:26:16]} {[%emt 00:00:08]} 5. d4 {[%clk 01:32:14]} {[%emt 00:00:07]}
Nf6 {[%clk 01:26:21]} {[%emt 00:00:26]} 6. Bd3 {[%clk 01:32:21]} {[%emt
00:00:21]} Bd7 {[%clk 01:25:15]} {[%emt 00:01:38]} 7. Ne5 {[%clk 01:30:42]}
{[%emt 00:02:08]} Bc6 {[%clk 01:24:48]} {[%emt 00:00:58]} 8. Nxc6 {[%clk
01:28:39]} {[%emt 00:02:32]} Nxc6 {[%clk 01:25:12]} {[%emt 00:00:06]} 9. c3
{[%clk 01:28:34]} {[%emt 00:00:34]} Qd5 {[%clk 00:38:24]} {[%emt 00:47:19]} 10.
Qe2 {[%clk 01:25:14]} {[%emt 00:03:48]} O-O {[%clk 00:36:30]} {[%emt 00:02:27]}
11. O-O {[%clk 01:23:56]} {[%emt 00:01:45]} Rab8 {[%clk 00:34:29]} {[%emt
00:02:34]} 12. f4 {[%clk 01:20:08]} {[%emt 00:04:17]} g6 {[%clk 00:21:36]}
{[%emt 00:13:24]} 13. Ng5 {[%clk 01:16:13]} {[%emt 00:04:23]} Rfd8 {[%clk
00:19:47]} {[%emt 00:02:20]} 14. Bc4 {[%clk 01:14:15]} {[%emt 00:02:26]} Qf5
{[%clk 00:17:57]} {[%emt 00:02:22]} 15. Nxe6 {[%clk 01:13:24]} {[%emt
00:01:20]} Rd7 {[%clk 00:16:25]} {[%emt 00:02:03]} 16. Ng5 {[%clk 01:10:51]}
{[%emt 00:03:02]} Nd5 {[%clk 00:16:21]} {[%emt 00:00:35]} 17. g4 {[%clk
01:09:07]} {[%emt 00:02:12]} Qf6 {[%clk 00:16:34]} {[%emt 00:00:19]} 18. f5
{[%clk 01:08:02]} {[%emt 00:01:34]} 1-0

[Event "Swedish Chess Championship 2019: Weekend 1"]
[Site "Stiga Sports Arena, Arenatorget 1, Eskilstuna, Sweden"]
[Date "2019.07.07"]
[Round "5.10"]
[White "Wallenas, Joakim"]
[Black "Svedberg, Hans"]
[Result "0-1"]
[TimeControl "90 minutes + 30 seconds per move from move one"]
[WhiteFideId "1728458"]
[BlackFideId "1705113"]
[WhiteElo "1991"]
[BlackElo "1993"]

1. e4 {[%clk 01:30:57]} {[%emt 00:00:02]} c5 {[%clk 01:24:09]} {[%emt
00:06:51]} 2. Nf3 {[%clk 01:31:15]} {[%emt 00:00:12]} d6 {[%clk 01:24:30]}
{[%emt 00:00:09]} 3. d4 {[%clk 01:31:28]} {[%emt 00:00:17]} cxd4 {[%clk
01:24:46]} {[%emt 00:00:14]} 4. Nxd4 {[%clk 01:31:49]} {[%emt 00:00:09]} Nf6
{[%clk 01:25:06]} {[%emt 00:00:10]} 5. Nc3 {[%clk 01:32:06]} {[%emt 00:00:13]}
a6 {[%clk 01:25:30]} {[%emt 00:00:06]} 6. Bc4 {[%clk 01:31:47]} {[%emt
00:00:49]} e6 {[%clk 01:24:12]} {[%emt 00:01:48]} 7. Be3 {[%clk 01:26:41]}
{[%emt 00:05:35]} Bd7 {[%clk 01:14:00]} {[%emt 00:10:42]} 8. O-O {[%clk
01:24:22]} {[%emt 00:02:49]} b5 {[%clk 01:12:00]} {[%emt 00:02:30]} 9. Bd3
{[%clk 01:20:37]} {[%emt 00:04:15]} Nc6 {[%clk 01:07:30]} {[%emt 00:05:00]} 10.
f4 {[%clk 01:18:17]} {[%emt 00:02:50]} b4 {[%clk 01:01:05]} {[%emt 00:06:54]}
11. Nce2 {[%clk 01:17:26]} {[%emt 00:01:21]} Ng4 {[%clk 00:55:47]} {[%emt
00:05:48]} 12. Nxc6 {[%clk 01:16:14]} {[%emt 00:01:43]} Bxc6 {[%clk 00:55:12]}
{[%emt 00:01:06]} 13. Bd4 {[%clk 01:13:39]} {[%emt 00:03:05]} e5 {[%clk
00:51:04]} {[%emt 00:04:37]} 14. Ng3 {[%clk 01:11:15]} {[%emt 00:02:54]} Qh4
{[%clk 00:42:41]} {[%emt 00:08:52]} 15. h3 {[%clk 01:09:37]} {[%emt 00:02:09]}
Qxg3 {[%clk 00:40:03]} {[%emt 00:03:07]} 16. hxg4 {[%clk 01:02:27]} {[%emt
00:07:41]} exd4 {[%clk 00:39:49]} {[%emt 00:00:45]} 17. g5 {[%clk 00:59:36]}
{[%emt 00:03:20]} Be7 {[%clk 00:24:53]} {[%emt 00:15:25]} 18. Qh5 {[%clk
00:51:26]} {[%emt 00:08:41]} g6 {[%clk 00:24:15]} {[%emt 00:01:07]} 19. Qh6
{[%clk 00:49:41]} {[%emt 00:02:16]} Bf8 {[%clk 00:23:50]} {[%emt 00:00:54]} 20.
Qh1 {[%clk 00:49:17]} {[%emt 00:00:53]} Qe3+ {[%clk 00:13:09]} {[%emt
00:11:12]} 21. Rf2 {[%clk 00:46:40]} {[%emt 00:03:08]} Bg7 {[%clk 00:13:17]}
{[%emt 00:00:21]} 22. Kf1 {[%clk 00:46:17]} {[%emt 00:00:52]} Qg3 {[%clk
00:09:19]} {[%emt 00:04:28]} 23. Rf3 {[%clk 00:39:29]} {[%emt 00:07:19]} Qg4
{[%clk 00:09:36]} {[%emt 00:00:12]} 24. Ke2 {[%clk 00:36:31]} {[%emt 00:03:30]}
h6 {[%clk 00:09:16]} {[%emt 00:00:49]} 25. gxh6 {[%clk 00:35:05]} {[%emt
00:01:56]} Rxh6 {[%clk 00:09:08]} {[%emt 00:00:38]} 26. Qg1 {[%clk 00:35:10]}
{[%emt 00:00:25]} f5 {[%clk 00:08:16]} {[%emt 00:01:22]} 27. Kd2 {[%clk
00:33:53]} {[%emt 00:01:48]} fxe4 {[%clk 00:06:59]} {[%emt 00:01:46]} 28. Re1
{[%clk 00:34:01]} {[%emt 00:00:21]} d5 {[%clk 00:06:55]} {[%emt 00:00:35]} 29.
Rf2 {[%clk 00:34:03]} {[%emt 00:00:28]} Kd8 {[%clk 00:06:47]} {[%emt 00:00:37]}
30. Rfe2 {[%clk 00:30:03]} {[%emt 00:04:31]} Qxf4+ {[%clk 00:06:30]} {[%emt
00:00:47]} 31. Kd1 {[%clk 00:30:22]} {[%emt 00:00:11]} Qg4 {[%clk 00:06:39]}
{[%emt 00:00:21]} 32. Kc1 {[%clk 00:30:14]} {[%emt 00:00:38]} Rh8 {[%clk
00:06:33]} {[%emt 00:00:35]} 33. c3 {[%clk 00:29:08]} {[%emt 00:01:37]} bxc3
{[%clk 00:06:32]} {[%emt 00:00:30]} 34. bxc3 {[%clk 00:29:25]} {[%emt
00:00:14]} Qg5+ {[%clk 00:05:54]} {[%emt 00:01:08]} 35. Kd1 {[%clk 00:27:41]}
{[%emt 00:02:14]} exd3 {[%clk 00:05:26]} {[%emt 00:00:57]} 36. Re6 {[%clk
00:27:18]} {[%emt 00:00:53]} Ba4# {[%clk 00:05:35]} {[%emt 00:00:21]} 0-1

[Event "Swedish Chess Championship 2019: Weekend 1"]
[Site "Stiga Sports Arena, Arenatorget 1, Eskilstuna, Sweden"]
[Date "2019.07.07"]
[Round "5.11"]
[White "Eriksson, Hans"]
[Black "Forsberg, Andre"]
[Result "1-0"]
[TimeControl "90 minutes + 30 seconds per move from move one"]
[WhiteFideId "1737040"]
[BlackFideId "1724193"]
[WhiteElo "1936"]
[BlackElo "1982"]

1. e4 {[%clk 01:30:57]} {[%emt 00:00:03]} e5 {[%clk 01:26:41]} {[%emt
00:04:19]} 2. Nf3 {[%clk 01:31:22]} {[%emt 00:00:04]} Nc6 {[%clk 01:26:55]}
{[%emt 00:00:17]} 3. Bc4 {[%clk 01:31:48]} {[%emt 00:00:05]} Bc5 {[%clk
01:27:14]} {[%emt 00:00:11]} 4. c3 {[%clk 01:32:14]} {[%emt 00:00:04]} Nf6
{[%clk 01:27:38]} {[%emt 00:00:06]} 5. d3 {[%clk 01:32:39]} {[%emt 00:00:04]}
d6 {[%clk 01:27:56]} {[%emt 00:00:12]} 6. Bb3 {[%clk 01:32:53]} {[%emt
00:00:16]} a6 {[%clk 01:28:05]} {[%emt 00:00:21]} 7. O-O {[%clk 01:33:17]}
{[%emt 00:00:05]} h6 {[%clk 01:28:14]} {[%emt 00:00:21]} 8. Re1 {[%clk
01:31:34]} {[%emt 00:02:13]} O-O {[%clk 01:28:36]} {[%emt 00:00:08]} 9. h3
{[%clk 01:31:54]} {[%emt 00:00:09]} Ba7 {[%clk 01:28:32]} {[%emt 00:00:34]} 10.
Nbd2 {[%clk 01:32:06]} {[%emt 00:00:18]} Nh5 {[%clk 01:28:02]} {[%emt
00:01:00]} 11. Nf1 {[%clk 01:30:46]} {[%emt 00:01:49]} Qf6 {[%clk 01:24:46]}
{[%emt 00:03:46]} 12. Be3 {[%clk 01:30:21]} {[%emt 00:00:55]} Nf4 {[%clk
01:24:34]} {[%emt 00:00:42]} 13. Bxa7 {[%clk 01:28:42]} {[%emt 00:02:10]} Rxa7
{[%clk 01:22:47]} {[%emt 00:02:17]} 14. Ng3 {[%clk 01:17:08]} {[%emt 00:12:04]}
g6 {[%clk 01:22:38]} {[%emt 00:00:38]} 15. d4 {[%clk 01:11:52]} {[%emt
00:05:46]} h5 {[%clk 01:22:47]} {[%emt 00:00:21]} 16. Re3 {[%clk 01:07:20]}
{[%emt 00:05:02]} h4 {[%clk 01:21:31]} {[%emt 00:01:46]} 17. Ne2 {[%clk
01:04:53]} {[%emt 00:02:57]} g5 {[%clk 01:15:39]} {[%emt 00:06:22]} 18. Nxf4
{[%clk 01:03:17]} {[%emt 00:02:06]} exf4 {[%clk 01:10:22]} {[%emt 00:05:47]} 19.
e5 {[%clk 00:55:03]} {[%emt 00:08:44]} Qh6 {[%clk 01:07:22]} {[%emt 00:03:28]}
20. Re1 {[%clk 00:52:24]} {[%emt 00:03:10]} g4 {[%clk 01:06:51]} {[%emt
00:01:01]} 21. hxg4 {[%clk 00:51:13]} {[%emt 00:01:41]} Bxg4 {[%clk 01:04:51]}
{[%emt 00:02:30]} 22. Qd3 {[%clk 00:50:46]} {[%emt 00:00:57]} h3 {[%clk
00:57:10]} {[%emt 00:08:10]} 23. Nh2 {[%clk 00:47:42]} {[%emt 00:03:34]} hxg2
{[%clk 00:57:01]} {[%emt 00:00:40]} 24. Kxg2 {[%clk 00:36:56]} {[%emt
00:11:16]} f3+ {[%clk 00:53:10]} {[%emt 00:04:20]} 25. Kg3 {[%clk 00:28:50]}
{[%emt 00:08:36]} Qh3+ {[%clk 00:19:11]} {[%emt 00:34:29]} 26. Kf4 {[%clk
00:29:13]} {[%emt 00:00:07]} dxe5+ {[%clk 00:19:10]} {[%emt 00:00:31]} 27. dxe5
{[%clk 00:25:46]} {[%emt 00:03:57]} Rd8 {[%clk 00:05:27]} {[%emt 00:14:12]} 28.
Qg6+ {[%clk 00:21:29]} {[%emt 00:04:47]} Kh8 {[%clk 00:04:14]} {[%emt
00:01:44]} 29. Qf6+ {[%clk 00:20:17]} {[%emt 00:01:42]} Kh7 {[%clk 00:03:07]}
{[%emt 00:01:37]} 30. Nxg4 {[%clk 00:19:28]} {[%emt 00:01:18]} Rg8 {[%clk
00:01:24]} {[%emt 00:02:13]} 31. Bc2+ {[%clk 00:19:14]} {[%emt 00:00:44]} Rg6
{[%clk 00:01:28]} {[%emt 00:00:25]} 32. Bxg6+ {[%clk 00:19:29]} {[%emt
00:00:16]} fxg6 {[%clk 00:01:44]} {[%emt 00:00:14]} 33. Rh1 {[%clk 00:19:47]}
{[%emt 00:00:11]} 1-0